fUSD/lending_fUSD_20260516
["ID","MTS","AMOUNT","RATE_DAILY","PERIOD"]
[422372825,1778892632000,-1266.35021534,0.00014799,2]
[422372826,1778892632000,-500.0,0.00014799,2]
[422372828,1778892632000,-500.0,0.00014799,2]
[422372827,1778892632000,-500.0,0.00014799,2]
[422372829,1778892632000,-431.69745624,0.00014799,2]
[422372831,1778892632000,-500.0,0.00014799,2]
[422372832,1778892632000,-500.0,0.00014799,2]
[422372830,1778892632000,-500.0,0.00014799,2]
[422372833,1778892632000,-2500.0,0.000148,2]
[422372805,1778892632000,-500.0,0.00013904,2]
[422372814,1778892632000,-500.0,0.00014178,2]
[422372803,1778892632000,-949.25,0.00013803,2]
[422372771,1778892632000,-150.0,0.00013488,2]
[422372801,1778892632000,-759.24146496,0.00013771,2]
[422372741,1778892632000,-500.0,0.00013356,2]
[422372752,1778892632000,-152.0,0.00013439,7]
[422372754,1778892632000,-152.0,0.00013439,7]
[422372740,1778892632000,-500.0,0.00013356,2]
[422372743,1778892632000,-2233.73,0.00013378,2]
[422372756,1778892632000,-1931.08428483,0.00013449,2]
[422372757,1778892632000,-949.25,0.00013474,2]
[422372748,1778892632000,-152.0,0.00013395,7]
[422372745,1778892632000,-152.0,0.00013395,7]
[422372750,1778892632000,-175.7,0.00013437,2]
[422372762,1778892632000,-150.0,0.00013488,2]
[422372759,1778892632000,-150.0,0.00013488,2]
[422372765,1778892632000,-150.0,0.00013488,2]
[422372777,1778892632000,-150.0,0.00013488,2]
[422372768,1778892632000,-150.0,0.00013488,2]
[422372774,1778892632000,-150.0,0.00013488,2]
[422372780,1778892632000,-150.0,0.00013488,2]
[422372783,1778892632000,-150.0,0.00013488,2]
[422372792,1778892632000,-415.56,0.00013608,2]
[422372786,1778892632000,-177.73,0.00013553,2]
[422372834,1778892632000,-909.9439185,0.00014845,2]
[422372794,1778892632000,-150.0,0.00013671,2]
[422372795,1778892632000,-37988.4861,0.00013672,2]
[422372796,1778892632000,-1931.08428483,0.00013691,2]
[422372798,1778892632000,-183.66,0.00013736,2]
[422372797,1778892632000,-210.68238258,0.00013703,2]
[422372799,1778892632000,-18399.95472572,0.00013762,2]
[422372800,1778892632000,-658.52873662,0.00013771,2]
[422372802,1778892632000,-200.0,0.00013801,2]
[422372804,1778892632000,-2000.0,0.0001388,2]
[422372835,1778892632000,-483.45695401,0.00014845,2]
[422372789,1778892632000,-1111.33,0.00013608,2]
[422372838,1778892632000,-1054.56613,0.0001485,2]
[422372871,1778892632000,-500.0,0.00014999,2]
[422372870,1778892632000,-500.0,0.00014999,2]
[422372874,1778892632000,-468.94859421,0.00014999,2]
[422372876,1778892632000,-500.0,0.00014999,2]
[422372886,1778892632000,-500.0,0.00014999,2]
[422372875,1778892632000,-500.0,0.00014999,2]
[422372877,1778892632000,-500.0,0.00014999,2]
[422372878,1778892632000,-500.0,0.00014999,2]
[422372882,1778892632000,-500.0,0.00014999,2]
[422372884,1778892632000,-500.0,0.00014999,2]
[422372883,1778892632000,-500.0,0.00014999,2]
[422372881,1778892632000,-500.0,0.00014999,2]
[422372879,1778892632000,-500.0,0.00014999,2]
[422372885,1778892632000,-500.0,0.00014999,2]
[422372880,1778892632000,-500.0,0.00014999,2]
[422372887,1778892632000,-500.0,0.00014999,2]
[422372888,1778892632000,-500.0,0.00014999,2]
[422372889,1778892632000,-500.0,0.00014999,2]
[422372890,1778892632000,-500.0,0.00014999,2]
[422372891,1778892632000,-500.0,0.00014999,2]
[422372893,1778892632000,-500.0,0.00014999,2]
[422372898,1778892632000,-280.13682204,0.00014999,2]
[422372897,1778892632000,-500.0,0.00014999,2]
[422372899,1778892632000,-261.34313987,0.00014999,2]
[422372892,1778892632000,-500.0,0.00014999,2]
[422372896,1778892632000,-500.0,0.00014999,2]
[422372895,1778892632000,-500.0,0.00014999,2]
[422372900,1778892632000,-223.45491054,0.00014999,2]
[422372836,1778892632000,-1872.07836152,0.00014845,2]
[422372872,1778892632000,-500.0,0.00014999,2]
[422372869,1778892632000,-500.0,0.00014999,2]
[422372894,1778892632000,-500.0,0.00014999,2]
[422372867,1778892632000,-500.0,0.00014998,2]
[422372868,1778892632000,-3122.5383592,0.00014999,2]
[422372837,1778892632000,-1054.56613,0.0001485,2]
[422372841,1778892632000,-200.0,0.0001488,2]
[422372843,1778892632000,-388.87235453,0.00014899,2]
[422372842,1778892632000,-500.0,0.00014899,2]
[422372840,1778892632000,-621.257,0.00014867,2]
[422372845,1778892632000,-388.87235453,0.000149,2]
[422372846,1778892632000,-388.87235453,0.000149,2]
[422372844,1778892632000,-388.87235453,0.00014899,2]
[422372848,1778892632000,-33175.6493,0.000149,2]
[422372847,1778892632000,-388.87235453,0.000149,2]
[422372850,1778892632000,-392.8054,0.000149,2]
[422372859,1778892632000,-201.86,0.00014985,2]
[422372852,1778892632000,-153.53198692,0.000149,2]
[422372858,1778892632000,-500.0,0.00014966,2]
[422372839,1778892632000,-1054.56613,0.0001486,2]
[422372853,1778892632000,-5000.0,0.000149,2]
[422372849,1778892632000,-8332.8307,0.000149,2]
[422372866,1778892632000,-648.18,0.00014998,2]
[422372864,1778892632000,-500.0,0.00014998,2]
[422372873,1778892632000,-500.0,0.00014999,2]
[422372863,1778892632000,-461.79272173,0.00014998,2]
[422372861,1778892632000,-150.0,0.00014986,2]
[422372862,1778892632000,-151.0,0.00014997,2]
[422372865,1778892632000,-500.0,0.00014998,2]
[422372857,1778892632000,-500.0,0.00014966,2]
[422372854,1778892632000,-388.87235453,0.000149,2]
[422372856,1778892632000,-218.0,0.00014955,2]
[422372855,1778892632000,-2184.46271996,0.000149,2]
[422372860,1778892632000,-150.0,0.00014985,2]
[422372851,1778892632000,-3267.44524086,0.000149,2]
[422372941,1778892633000,-332.21223277,0.00014999,2]
[422372938,1778892633000,-500.0,0.00014999,2]
[422372937,1778892633000,-500.0,0.00014999,2]
[422372934,1778892633000,-500.0,0.00014999,2]
[422372927,1778892633000,-500.0,0.00014999,2]
[422372933,1778892633000,-500.0,0.00014999,2]
[422372935,1778892633000,-500.0,0.00014999,2]
[422372942,1778892633000,-500.0,0.00014999,2]
[422372936,1778892633000,-500.0,0.00014999,2]
[422372932,1778892633000,-500.0,0.00014999,2]
[422372931,1778892633000,-500.0,0.00014999,2]
[422372946,1778892633000,-500.0,0.00014999,2]
[422372944,1778892633000,-500.0,0.00014999,2]
[422372945,1778892633000,-500.0,0.00014999,2]
[422372948,1778892633000,-500.0,0.00014999,2]
[422372947,1778892633000,-500.0,0.00014999,2]
[422372949,1778892633000,-500.0,0.00014999,2]
[422372939,1778892633000,-500.0,0.00014999,2]
[422372943,1778892633000,-500.0,0.00014999,2]
[422372950,1778892633000,-500.0,0.00014999,2]
[422372952,1778892633000,-500.0,0.00014999,2]
[422372928,1778892633000,-500.0,0.00014999,2]
[422372956,1778892633000,-500.0,0.00014999,2]
[422372940,1778892633000,-500.0,0.00014999,2]
[422372930,1778892633000,-500.0,0.00014999,2]
[422372910,1778892633000,-500.0,0.00014999,2]
[422372926,1778892633000,-500.0,0.00014999,2]
[422372953,1778892633000,-500.0,0.00014999,2]
[422372912,1778892633000,-500.0,0.00014999,2]
[422372901,1778892633000,-500.0,0.00014999,2]
[422372903,1778892633000,-500.0,0.00014999,2]
[422372902,1778892633000,-500.0,0.00014999,2]
[422372906,1778892633000,-75327.2098932,0.00014999,2]
[422372908,1778892633000,-500.0,0.00014999,2]
[422372905,1778892633000,-500.0,0.00014999,2]
[422372911,1778892633000,-500.0,0.00014999,2]
[422372904,1778892633000,-175.16187645,0.00014999,2]
[422372909,1778892633000,-500.0,0.00014999,2]
[422372929,1778892633000,-500.0,0.00014999,2]
[422372907,1778892633000,-500.0,0.00014999,2]
[422372915,1778892633000,-13476.0511529,0.00014999,2]
[422372914,1778892633000,-2186.2079961,0.00014999,2]
[422372916,1778892633000,-3188.548375,0.00014999,2]
[422372919,1778892633000,-3587.35158,0.00014999,2]
[422372920,1778892633000,-300.0,0.00014999,2]
[422372917,1778892633000,-182.6548452,0.00014999,2]
[422372924,1778892633000,-500.0,0.00014999,2]
[422372923,1778892633000,-500.0,0.00014999,2]
[422372921,1778892633000,-621.74470057,0.00014999,2]
[422372918,1778892633000,-343.1,0.00014999,2]
[422372922,1778892633000,-1090.63123349,0.00014999,5]
[422372913,1778892633000,-193.95489463,0.00014999,2]
[422372951,1778892633000,-500.0,0.00014999,2]
[422372925,1778892633000,-500.0,0.00014999,2]
[422372954,1778892633000,-500.0,0.00014999,2]
[422372980,1778892633000,-648.18,0.00014999,2]
[422372981,1778892633000,-648.18,0.00014999,2]
[422372985,1778892633000,-648.18,0.00014999,2]
[422372988,1778892633000,-6796.1707623,0.00014999,2]
[422372986,1778892633000,-648.18,0.00014999,2]
[422372987,1778892633000,-648.36461365,0.00014999,2]
[422372990,1778892633000,-300.0,0.00014999,2]
[422372991,1778892633000,-300.0,0.00014999,2]
[422372995,1778892633000,-300.0,0.00014999,2]
[422372992,1778892633000,-183.9169181,0.00014999,2]
[422373002,1778892633000,-150.0,0.00015,2]
[422372999,1778892633000,-666.0,0.00014999,2]
[422372998,1778892633000,-300.0,0.00014999,2]
[422372997,1778892633000,-300.0,0.00014999,2]
[422372993,1778892633000,-300.0,0.00014999,2]
[422372996,1778892633000,-666.0,0.00014999,2]
[422373001,1778892633000,-1175.0,0.00015,5]
[422373000,1778892633000,-1466.0,0.00015,5]
[422373003,1778892633000,-150.0,0.00015,2]
[422373004,1778892633000,-725773.21328539,0.00015,2]
[422373007,1778892633000,-107601.58731292,0.00015,2]
[422373006,1778892633000,-17815.7591447,0.00015,2]
[422373008,1778892633000,-1254.41808677,0.00015,2]
[422373005,1778892633000,-16481.10424959,0.00015,2]
[422372984,1778892633000,-648.18,0.00014999,2]
[422372994,1778892633000,-666.0,0.00014999,2]
[422372982,1778892633000,-648.18,0.00014999,2]
[422372989,1778892633000,-500.0,0.00014999,2]
[422372962,1778892633000,-500.0,0.00014999,2]
[422372958,1778892633000,-500.0,0.00014999,2]
[422372963,1778892633000,-500.0,0.00014999,2]
[422372960,1778892633000,-500.0,0.00014999,2]
[422372955,1778892633000,-500.0,0.00014999,2]
[422372957,1778892633000,-500.0,0.00014999,2]
[422372959,1778892633000,-500.0,0.00014999,2]
[422372964,1778892633000,-646.23431687,0.00014999,2]
[422372976,1778892633000,-648.18,0.00014999,2]
[422372974,1778892633000,-648.18,0.00014999,2]
[422372965,1778892633000,-648.18,0.00014999,2]
[422372961,1778892633000,-500.0,0.00014999,2]
[422372975,1778892633000,-648.18,0.00014999,2]
[422372972,1778892633000,-648.18,0.00014999,2]
[422372977,1778892633000,-648.18,0.00014999,2]
[422372966,1778892633000,-648.18,0.00014999,2]
[422372967,1778892633000,-648.18,0.00014999,2]
[422372968,1778892633000,-648.18,0.00014999,2]
[422372970,1778892633000,-648.18,0.00014999,2]
[422372969,1778892633000,-648.18,0.00014999,2]
[422372973,1778892633000,-648.18,0.00014999,2]
[422372971,1778892633000,-648.18,0.00014999,2]
[422372979,1778892633000,-648.18,0.00014999,2]
[422372978,1778892633000,-648.18,0.00014999,2]
[422372983,1778892633000,-648.18,0.00014999,2]
[422373024,1778892637000,-1931.08428483,0.00014175,2]
[422373025,1778892637000,-865194.15485353,0.00015,2]
[422373026,1778892637000,-2076.06689717,0.00015,2]
[422373027,1778892637000,-3144.531642,0.00015,14]
[422373030,1778892637000,-1419.53603552,0.00015,2]
[422373029,1778892637000,-2328583.3224707,0.00015,2]
[422373028,1778892637000,-8082.43942848,0.00015,2]
[422373055,1778892640000,-1950.0,0.00013662,2]
[422373054,1778892640000,-471.95013369,0.00013662,2]
[422373050,1778892640000,-263.62620958,0.00014416,2]
[422373064,1778892643000,-148788.87572618,0.00013662,2]
[422373063,1778892643000,-178663.0867331,0.00013662,2]
[422373070,1778892646000,-1999.958517,0.00013662,2]
[422373069,1778892646000,-11893.14061197,0.00013662,2]
[422373067,1778892646000,-11947.57819722,0.00013662,2]
[422373068,1778892646000,-511.0,0.00013662,2]
[422373072,1778892773000,150.248,0.00030137,120]
[422373073,1778892855000,162.5,6.705e-05,2]
[422373075,1778892855000,162.5,7.993e-05,2]
[422373074,1778892855000,162.5,7.349e-05,2]
[422373077,1778892856000,162.5,9.282e-05,2]
[422373076,1778892856000,162.5,8.638e-05,2]
[422373078,1778892857000,162.5,9.926e-05,2]
[422373079,1778892970000,254.53087623,0.00026737,120]
[422373080,1778893168000,156.11330995,0.00025725,120]
[422373081,1778893297000,211.66,9.529e-05,2]
[422373082,1778893487000,158.0,0.000301,120]
[422373088,1778893525000,2856.78942477,9.04e-05,2]
[422373083,1778893525000,5314.71812063,9.04e-05,2]
[422373087,1778893525000,10000.0,9.04e-05,2]
[422373086,1778893525000,10000.0,9.04e-05,2]
[422373085,1778893525000,10000.0,9.04e-05,2]
[422373084,1778893525000,10000.0,9.04e-05,2]
[422373089,1778893720000,160.47,5.91e-05,2]
[422373090,1778893720000,160.47,7.045e-05,2]
[422373091,1778893720000,160.47,8.181e-05,2]
[422373092,1778893721000,160.47,9.317e-05,2]
[422373109,1778893831000,-150.0,0.00011711,2]
[422373106,1778893831000,-160.47,0.00011588,2]
[422373108,1778893831000,-250.0,0.00011627,2]
[422373107,1778893831000,-2000.0,0.00011611,2]
[422373105,1778893831000,-1452.66334849,0.0001057,2]
[422373104,1778893831000,-160.47,0.00010452,2]
[422373124,1778893832000,-7475.61072218,0.00012516,2]
[422373123,1778893832000,-300.0,0.00012515,2]
[422373121,1778893832000,-210.06545593,0.00012515,2]
[422373122,1778893832000,-269.93454407,0.00012515,2]
[422373119,1778893832000,-155.97260288,0.00012514,2]
[422373118,1778893832000,-387.2,0.00012386,2]
[422373116,1778893832000,-200.66,0.00012139,2]
[422373114,1778893832000,-387.2,0.00012084,2]
[422373113,1778893832000,-200.0,0.00012084,2]
[422373115,1778893832000,-1075.96,0.00012093,2]
[422373134,1778893832000,-420.0,0.00012516,2]
[422373111,1778893832000,-160.17,0.00011911,2]
[422373112,1778893832000,-150.0,0.00011973,2]
[422373110,1778893832000,-250.73,0.00011862,2]
[422373117,1778893832000,-252.35722,0.00012323,2]
[422373137,1778893832000,-3383.42896817,0.00012516,2]
[422373120,1778893832000,-1044.02739712,0.00012514,2]
[422373138,1778893832000,-2318.46368358,0.00012516,2]
[422373139,1778893832000,-688.58850667,0.00012516,2]
[422373153,1778893832000,-38817.35152564,0.00012616,2]
[422373152,1778893832000,-60285.14653486,0.00012616,2]
[422373151,1778893832000,-22116.54810645,0.00012616,2]
[422373148,1778893832000,-1000.0,0.00012615,2]
[422373150,1778893832000,-15982.49641704,0.00012616,2]
[422373149,1778893832000,-150.0,0.00012615,2]
[422373147,1778893832000,-5329.64700774,0.00012606,2]
[422373154,1778893832000,-1015.79310861,0.00012616,2]
[422373145,1778893832000,-504.0,0.00012548,2]
[422373143,1778893832000,-4104.09628572,0.00012517,2]
[422373144,1778893832000,-171.19,0.00012536,2]
[422373142,1778893832000,-300.0,0.00012516,2]
[422373140,1778893832000,-13856.45535382,0.00012516,2]
[422373141,1778893832000,-108484.43016558,0.00012516,2]
[422373146,1778893832000,-166.8,0.00012553,2]
[422373179,1778893838000,-500.0,0.00013488,2]
[422373184,1778893838000,-150.0,0.00013488,2]
[422373178,1778893838000,-10857.13052741,0.0001348,2]
[422373182,1778893838000,-150.0,0.00013488,2]
[422373186,1778893838000,-150.0,0.00013488,2]
[422373185,1778893838000,-150.0,0.00013488,2]
[422373187,1778893838000,-150.0,0.00013488,2]
[422373188,1778893838000,-150.0,0.00013526,2]
[422373189,1778893838000,-1338.5981,0.00013562,2]
[422373190,1778893838000,-2000.0,0.00013562,2]
[422373193,1778893838000,-4104.09628571,0.00013576,2]
[422373192,1778893838000,-150.0,0.00013565,2]
[422373196,1778893838000,-10857.13052739,0.00013638,2]
[422373195,1778893838000,-150.0,0.00013603,2]
[422373194,1778893838000,-166.8,0.00013589,2]
[422373201,1778893838000,-500.0,0.00013698,2]
[422373199,1778893838000,-150.0,0.00013654,2]
[422373200,1778893838000,-150.0,0.0001368,2]
[422373180,1778893838000,-150.0,0.00013488,2]
[422373191,1778893838000,-5000.0,0.00013562,2]
[422373181,1778893838000,-150.0,0.00013488,2]
[422373159,1778893838000,-31853.9972804,0.00012516,2]
[422373177,1778893838000,-152.0,0.00013462,7]
[422373197,1778893838000,-150.0,0.00013641,2]
[422373157,1778893838000,-5886.54546203,0.00012516,2]
[422373158,1778893838000,-6275.55825757,0.00012516,2]
[422373161,1778893838000,-387.2,0.00012688,2]
[422373160,1778893838000,-356.05860598,0.00012617,2]
[422373163,1778893838000,-4104.09628571,0.00012782,2]
[422373164,1778893838000,-186.4,0.000128,2]
[422373162,1778893838000,-208.38824723,0.00012706,2]
[422373165,1778893838000,-387.2,0.0001299,2]
[422373183,1778893838000,-150.0,0.00013488,2]
[422373172,1778893838000,-500.0,0.00013356,2]
[422373167,1778893838000,-5410.67248723,0.0001305,2]
[422373168,1778893838000,-2000.0,0.00013062,2]
[422373171,1778893838000,-5779.33,0.0001335,2]
[422373166,1778893838000,-4104.09628571,0.00013047,2]
[422373170,1778893838000,-4104.09628571,0.00013311,2]
[422373173,1778893838000,-500.0,0.00013356,2]
[422373174,1778893838000,-152.0,0.00013396,7]
[422373175,1778893838000,-152.0,0.00013412,7]
[422373176,1778893838000,-152.0,0.00013462,7]
[422373169,1778893838000,-387.2,0.00013292,2]
[422373198,1778893838000,-4394.89,0.00013644,2]
[422373252,1778893838000,-500.0,0.00013698,2]
[422373215,1778893838000,-500.0,0.00013698,2]
[422373245,1778893838000,-500.0,0.00013698,2]
[422373247,1778893838000,-500.0,0.00013698,2]
[422373250,1778893838000,-500.0,0.00013698,2]
[422373251,1778893838000,-500.0,0.00013698,2]
[422373249,1778893838000,-500.0,0.00013698,2]
[422373248,1778893838000,-500.0,0.00013698,2]
[422373266,1778893838000,-500.0,0.00013698,2]
[422373253,1778893838000,-500.0,0.00013698,2]
[422373254,1778893838000,-500.0,0.00013698,2]
[422373246,1778893838000,-500.0,0.00013698,2]
[422373256,1778893838000,-500.0,0.00013698,2]
[422373257,1778893838000,-500.0,0.00013698,2]
[422373259,1778893838000,-401.0210076,0.00013698,2]
[422373263,1778893838000,-500.0,0.00013698,2]
[422373260,1778893838000,-500.0,0.00013698,2]
[422373261,1778893838000,-500.0,0.00013698,2]
[422373258,1778893838000,-508.37684919,0.00013698,2]
[422373264,1778893838000,-500.0,0.00013698,2]
[422373265,1778893838000,-500.0,0.00013698,2]
[422373202,1778893838000,-500.0,0.00013698,2]
[422373255,1778893838000,-500.0,0.00013698,2]
[422373242,1778893838000,-500.0,0.00013698,2]
[422373262,1778893838000,-500.0,0.00013698,2]
[422373240,1778893838000,-500.0,0.00013698,2]
[422373204,1778893838000,-500.0,0.00013698,2]
[422373243,1778893838000,-500.0,0.00013698,2]
[422373209,1778893838000,-500.0,0.00013698,2]
[422373213,1778893838000,-500.0,0.00013698,2]
[422373206,1778893838000,-500.0,0.00013698,2]
[422373217,1778893838000,-500.0,0.00013698,2]
[422373222,1778893838000,-500.0,0.00013698,2]
[422373226,1778893838000,-500.0,0.00013698,2]
[422373224,1778893838000,-500.0,0.00013698,2]
[422373219,1778893838000,-500.0,0.00013698,2]
[422373211,1778893838000,-500.0,0.00013698,2]
[422373231,1778893838000,-500.0,0.00013698,2]
[422373233,1778893838000,-500.0,0.00013698,2]
[422373235,1778893838000,-500.0,0.00013698,2]
[422373236,1778893838000,-500.0,0.00013698,2]
[422373239,1778893838000,-500.0,0.00013698,2]
[422373238,1778893838000,-500.0,0.00013698,2]
[422373237,1778893838000,-500.0,0.00013698,2]
[422373229,1778893838000,-502.56578458,0.00013698,2]
[422373241,1778893838000,-500.0,0.00013698,2]
[422373244,1778893838000,-500.0,0.00013698,2]
[422373311,1778893839000,-150.0,0.00013987,2]
[422373313,1778893839000,-150.0,0.00013987,2]
[422373309,1778893839000,-150.0,0.00013987,2]
[422373307,1778893839000,-488.312682,0.00013965,2]
[422373306,1778893839000,-150.0,0.00013949,2]
[422373302,1778893839000,-674.134731,0.00013892,2]
[422373305,1778893839000,-150.0,0.0001391,2]
[422373303,1778893839000,-905.198949,0.00013892,2]
[422373300,1778893839000,-500.0,0.00013887,2]
[422373308,1778893839000,-166.66,0.00013973,2]
[422373301,1778893839000,-945.563097,0.00013892,2]
[422373304,1778893839000,-160.17,0.00013896,2]
[422373310,1778893839000,-150.0,0.00013987,2]
[422373325,1778893839000,-150.0,0.00014102,2]
[422373314,1778893839000,-150.0,0.00013987,2]
[422373315,1778893839000,-1940.8023514,0.0001399,2]
[422373316,1778893839000,-500.0,0.00014,2]
[422373318,1778893839000,-250.0,0.00014,2]
[422373317,1778893839000,-598.15,0.00014,2]
[422373319,1778893839000,-150.0,0.00014026,2]
[422373321,1778893839000,-1154.0,0.00014032,5]
[422373320,1778893839000,-500.0,0.00014031,2]
[422373327,1778893839000,-166.66,0.0001411,2]
[422373326,1778893839000,-4104.09628571,0.00014106,2]
[422373323,1778893839000,-150.0,0.00014064,2]
[422373322,1778893839000,-500.0,0.00014036,2]
[422373298,1778893839000,-4104.09628571,0.00013841,2]
[422373312,1778893839000,-150.0,0.00013987,2]
[422373297,1778893839000,-166.66,0.00013836,2]
[422373274,1778893839000,-500.0,0.00013698,2]
[422373296,1778893839000,-150.0,0.00013834,2]
[422373267,1778893839000,-500.0,0.00013698,2]
[422373269,1778893839000,-259.04345659,0.00013698,2]
[422373268,1778893839000,-500.0,0.00013698,2]
[422373270,1778893839000,-500.0,0.00013698,2]
[422373272,1778893839000,-500.0,0.00013698,2]
[422373271,1778893839000,-500.0,0.00013698,2]
[422373275,1778893839000,-500.0,0.00013698,2]
[422373273,1778893839000,-500.0,0.00013698,2]
[422373329,1778893839000,-224.48995879,0.0001415,2]
[422373277,1778893839000,-500.0,0.00013698,2]
[422373279,1778893839000,-500.0,0.00013698,2]
[422373276,1778893839000,-500.0,0.00013698,2]
[422373280,1778893839000,-500.0,0.00013698,2]
[422373278,1778893839000,-500.0,0.00013698,2]
[422373282,1778893839000,-200.0,0.00013699,2]
[422373285,1778893839000,-420.0,0.00013731,2]
[422373281,1778893839000,-166.66,0.00013699,2]
[422373283,1778893839000,-255.0,0.00013712,2]
[422373288,1778893839000,-150.0,0.00013737,2]
[422373284,1778893839000,-150.0,0.00013718,2]
[422373286,1778893839000,-307.0,0.00013733,2]
[422373287,1778893839000,-150.0,0.00013737,2]
[422373290,1778893839000,-500.0,0.00013762,2]
[422373291,1778893839000,-1680.0,0.00013765,2]
[422373289,1778893839000,-150.0,0.00013757,2]
[422373293,1778893839000,-10857.13052739,0.00013796,2]
[422373292,1778893839000,-150.0,0.00013795,2]
[422373295,1778893839000,-150.0,0.00013821,2]
[422373294,1778893839000,-1000.0,0.00013807,2]
[422373299,1778893839000,-150.0,0.00013872,2]
[422373328,1778893839000,-150.0,0.00014141,2]
[422373324,1778893839000,-480.95279684,0.00014091,2]
[422373331,1778893839000,-500.0,0.00014176,2]
[422373366,1778893839000,-500.0,0.00014249,2]
[422373367,1778893839000,-500.0,0.00014249,2]
[422373369,1778893839000,-500.0,0.00014249,2]
[422373368,1778893839000,-500.0,0.00014249,2]
[422373371,1778893839000,-500.0,0.00014249,2]
[422373370,1778893839000,-500.0,0.00014249,2]
[422373373,1778893839000,-20180.96702544,0.0001425,2]
[422373372,1778893839000,-249986.26134879,0.0001425,2]
[422373378,1778893839000,-150.0,0.00014295,2]
[422373376,1778893839000,-150.0,0.00014256,2]
[422373377,1778893839000,-224.48995877,0.00014275,2]
[422373375,1778893839000,-2200.437611,0.0001425,2]
[422373374,1778893839000,-1582.282913,0.0001425,2]
[422373363,1778893839000,-500.0,0.00014249,2]
[422373380,1778893839000,-500.0,0.0001431,2]
[422373379,1778893839000,-350.0,0.00014297,2]
[422373381,1778893839000,-150.0,0.0001432,2]
[422373384,1778893839000,-500.0,0.00014352,2]
[422373385,1778893839000,-500.0,0.00014352,2]
[422373388,1778893839000,-500.0,0.00014352,2]
[422373387,1778893839000,-500.0,0.00014352,2]
[422373389,1778893839000,-234.94080904,0.00014352,2]
[422373386,1778893839000,-500.0,0.00014352,2]
[422373383,1778893839000,-500.0,0.00014352,2]
[422373390,1778893839000,-150.0,0.00014352,2]
[422373392,1778893839000,-291.85352659,0.00014352,2]
[422373330,1778893839000,-150.0,0.00014154,2]
[422373393,1778893839000,-150.0,0.00014352,2]
[422373382,1778893839000,-150.0,0.00014333,2]
[422373365,1778893839000,-500.0,0.00014249,2]
[422373391,1778893839000,-150.0,0.00014352,2]
[422373361,1778893839000,-500.0,0.00014249,2]
[422373364,1778893839000,-190.91037702,0.00014249,2]
[422373334,1778893839000,-500.0,0.00014176,2]
[422373333,1778893839000,-500.0,0.00014176,2]
[422373335,1778893839000,-500.0,0.00014176,2]
[422373339,1778893839000,-150.0,0.00014179,2]
[422373337,1778893839000,-190.94577915,0.00014176,2]
[422373338,1778893839000,-500.0,0.00014176,2]
[422373340,1778893839000,-150.0,0.00014218,2]
[422373336,1778893839000,-500.0,0.00014176,2]
[422373342,1778893839000,-150.0,0.00014237,2]
[422373341,1778893839000,-150.0,0.00014237,2]
[422373344,1778893839000,-500.0,0.00014249,2]
[422373343,1778893839000,-166.66,0.00014247,2]
[422373345,1778893839000,-500.0,0.00014249,2]
[422373332,1778893839000,-500.0,0.00014176,2]
[422373348,1778893839000,-500.0,0.00014249,2]